bitfinex/quotes_ETHUSD_20250507
["timestamp","ask_amount","ask_price","bid_price","bid_amount"]
[1746640624889,5.57183755,1794.8,1794.5,3.92642473]
[1746640625115,5.57249099,1794.6,1794.4,6.0]
[1746640625285,5.57258289,1794.5,1794.4,6.0]
[1746640626114,5.5723744,1794.6,1794.4,6.0]
[1746640626818,0.7824,1795.1,1794.4,6.0]
[1746640626819,0.7824,1795.1,1794.4,11.57275706]
[1746640626973,0.7824,1795.1,1794.5,9.55457019]
[1746640626974,5.57147869,1794.9,1794.5,9.55457019]
[1746640627567,5.57147869,1794.9,1794.5,9.55456236]
[1746640627787,5.57147869,1794.9,1794.5,10.36376076]
[1746640628041,5.57040998,1795.2,1794.7,5.57192839]
[1746640628182,5.57041416,1795.2,1794.8,9.5536351]
[1746640628387,5.57081604,1795.1,1794.8,9.49802907]
[1746640628595,5.57082045,1795.1,1794.8,3.92642473]
[1746640628796,5.57058167,1795.2,1794.8,3.92642473]
[1746640628984,5.56968705,1795.5,1795.1,9.49704884]
[1746640629182,0.7731,1795.8,1795.2,5.57034353]
[1746640629183,5.56930268,1795.6,1795.2,5.57034353]
[1746640629387,5.56912335,1795.7,1795.3,6.37132588]
[1746640629584,5.56927948,1795.6,1795.3,0.8015]
[1746640630678,5.56823876,1795.9,1795.3,0.8015]
[1746640631007,10.00115099,1796.0,1795.3,0.8015]
[1746640631008,5.56978946,1795.4,1795.3,0.8015]
[1746640631169,5.57024588,1795.3,1795.0,0.8178]
[1746640631507,5.57014835,1795.3,1795.0,0.8178]
[1746640632089,5.56978946,1795.4,1795.0,0.8178]
[1746640632328,0.7565,1795.5,1795.0,0.8735043]
[1746640632483,5.57012293,1795.3,1795.0,0.8735043]
[1746640632683,5.5699099,1795.4,1795.0,6.44433832]
[1746640632899,5.56960899,1795.5,1795.1,5.57056111]
[1746640633220,5.56960899,1795.5,1795.0,11.55946905]
[1746640633221,5.57003402,1795.4,1795.0,11.55956635]
[1746640633418,0.7541,1795.8,1795.0,4.74422473]
[1746640633419,5.56918459,1795.6,1795.0,4.74422473]
[1746640633619,5.57041262,1795.2,1795.0,0.8178]
[1746640633822,5.57041262,1795.2,1794.8,17.90684573]
[1746640634123,5.56967172,1795.5,1795.1,5.57070955]
[1746640634426,5.56967172,1795.5,1795.1,5.62623554]
[1746640634717,5.56934801,1795.6,1795.2,5.57031168]
[1746640634923,5.56948989,1795.5,1795.1,11.57052618]
[1746640635713,5.56948989,1795.5,1795.1,6.0]
[1746640635914,5.56948989,1795.5,1795.1,11.62633499]
[1746640636115,5.56948989,1795.5,1795.1,11.57063633]
[1746640636419,5.56948989,1795.5,1795.1,6.0]
[1746640636619,5.56920601,1795.6,1795.3,5.56998676]
[1746640636828,5.56920601,1795.6,1795.3,5.625682]
[1746640637235,5.56920601,1795.6,1795.3,0.05569524]
[1746640637396,5.56916092,1795.7,1795.3,3.98211997]
[1746640637590,5.56803863,1796.0,1795.3,3.92642473]
[1746640637795,5.56903419,1795.7,1795.3,3.98211883]
[1746640637996,5.56916951,1795.6,1795.3,9.55205492]
[1746640638326,5.56916951,1795.6,1795.3,3.98211883]
[1746640638629,5.56916951,1795.6,1795.2,6.8208]
[1746640638630,5.56916951,1795.6,1795.2,16.31247934]
[1746640638792,5.56872623,1795.8,1795.3,0.05569401]
[1746640638996,5.56812687,1796.0,1795.5,9.49061952]
[1746640639223,5.56812687,1796.0,1795.6,6.44756446]
[1746640639527,5.56812687,1796.0,1795.6,0.87858436]
[1746640639727,5.56777791,1796.1,1795.7,5.56869236]
[1746640639897,5.56739397,1796.2,1795.8,9.54548868]
[1746640640090,5.56701951,1796.3,1795.9,5.56812806]
[1746640640332,5.56732686,1796.2,1795.9,5.62380405]
[1746640640695,5.56701951,1796.3,1795.9,0.05567599]
[1746640640927,5.56701951,1796.3,1795.9,5.62378227]
[1746640641228,5.56711154,1796.3,1796.0,0.7935]
[1746640641414,6.33617201,1796.6,1795.9,6.0]
[1746640641415,5.56781605,1796.1,1795.9,6.0]
[1746640641803,5.56642362,1796.5,1795.9,6.0]
[1746640642010,5.56792873,1796.0,1795.9,6.0]
[1746640642210,5.56902123,1795.7,1795.5,0.8195]
[1746640642408,5.56848533,1795.9,1795.5,3.92008728]
[1746640642620,5.56840656,1795.9,1795.5,16.43827438]
[1746640642831,5.56805125,1796.0,1795.6,5.56895082]
[1746640643128,5.56763524,1796.1,1795.8,9.48853425]
[1746640643333,0.7947,1796.6,1795.8,9.48847988]
[1746640643334,5.56748819,1796.2,1795.8,9.48847988]
[1746640643533,5.56748819,1796.2,1795.9,0.05567595]
[1746640643731,5.56698473,1796.4,1796.0,5.5677705]
[1746640643930,5.56703591,1796.3,1796.0,0.05567053]
[1746640644117,6.36080265,1796.6,1795.9,0.95441558]
[1746640644438,5.56736046,1796.2,1795.9,6.0]
[1746640644729,5.56716055,1796.3,1795.9,5.56802347]
[1746640644937,5.56736526,1796.2,1795.9,5.56802347]
[1746640645298,11.13440347,1796.3,1795.9,5.56802347]
[1746640645504,11.13377658,1796.4,1796.0,5.56788644]
[1746640645740,5.56684005,1796.4,1796.0,5.56788644]
[1746640645925,5.56700242,1796.3,1796.0,6.68147743]
[1746640646123,6.6625657,1796.8,1796.1,10.23956248]
[1746640646124,5.56652466,1796.5,1796.1,10.23956248]
[1746640646330,5.56672909,1796.4,1796.1,10.23956248]
[1746640646526,10.0560655,1796.8,1796.3,5.56684386]
[1746640646527,5.56601153,1796.7,1796.3,5.56684386]
[1746640646703,5.56601153,1796.7,1796.3,5.62250517]
[1746640646704,5.56609279,1796.6,1796.3,5.62250517]
[1746640646904,5.56609279,1796.6,1796.3,1.77463759]
[1746640647240,5.56679691,1796.4,1796.2,6.0]
[1746640647443,5.56679691,1796.4,1796.1,6.752]
[1746640648310,5.56717185,1796.3,1796.1,6.752]
[1746640648826,5.56649605,1796.5,1796.1,12.31960524]
[1746640648998,11.13317506,1796.5,1796.1,12.31960524]
[1746640649203,5.56649605,1796.5,1796.2,0.05566687]
[1746640649402,6.39288035,1797.0,1796.4,9.48667594]
[1746640649603,5.56547279,1796.8,1796.4,3.97574639]
[1746640649839,5.56585568,1796.7,1796.4,3.97574639]
[1746640650040,4.4907657,1797.5,1796.5,0.8021]
[1746640650243,5.56588719,1796.7,1796.5,0.8021]
[1746640650406,5.56606924,1796.6,1796.4,6.0]
[1746640651142,5.56591445,1796.7,1796.4,6.0]
[1746640651328,5.56591445,1796.7,1796.4,7.23689088]
[1746640651637,5.56562039,1796.8,1796.4,12.80341862]
[1746640651638,5.5657271,1796.8,1796.4,12.80341862]
[1746640651833,5.56589393,1796.7,1796.4,6.0]
[1746640652607,5.56532295,1796.9,1796.5,0.05565998]
[1746640652806,5.56562078,1796.8,1796.4,11.56652924]
[1746640653006,5.56531701,1796.9,1796.4,6.0]
[1746640655226,6.34699053,1797.3,1796.6,0.7725]
[1746640655410,5.56553908,1796.8,1796.6,0.7725]
[1746640655624,5.56575944,1796.7,1796.6,6.7725]
[1746640656933,5.56535742,1796.9,1796.6,7.44975]
[1746640657128,5.56535742,1796.9,1796.6,6.7725]
[1746640657851,5.56548104,1796.8,1796.6,6.7725]
[1746640658073,5.56575944,1796.7,1796.6,6.7725]
[1746640658251,5.56637907,1796.5,1796.4,0.7725]
[1746640658428,5.56670474,1796.4,1796.2,6.0]
[1746640658628,5.56699883,1796.3,1796.2,6.0]
[1746640658844,5.56544968,1796.8,1796.2,6.0]
[1746640659037,5.56668443,1796.5,1796.2,0.05566646]
[1746640659260,5.56661129,1796.5,1796.2,0.05566646]
[1746640659452,5.56661129,1796.5,1796.1,6.7725]
[1746640659670,5.56688656,1796.4,1796.1,6.7725]
[1746640659952,5.56673472,1796.4,1796.1,8.11788384]
[1746640660150,5.56730876,1796.2,1796.1,6.0]
[1746640660543,11.13380298,1796.4,1796.1,6.0]
[1746640660743,5.56702659,1796.3,1796.1,6.0]
[1746640660938,5.56681102,1796.4,1796.1,6.0]
[1746640661143,5.56681102,1796.4,1796.1,6.60556717]
[1746640661519,5.56700428,1796.3,1796.1,6.60556717]
[1746640661718,9.34825065,1796.9,1796.1,6.0]
[1746640661719,0.783,1796.9,1796.1,6.0]
[1746640661939,5.56544968,1796.8,1796.0,6.0]
[1746640662135,5.56671674,1796.4,1796.1,5.62308897]
[1746640662373,5.56671504,1796.4,1796.1,11.62308897]
[1746640662537,5.56671504,1796.4,1796.1,6.0]
[1746640662744,5.56671504,1796.4,1796.1,7.15677441]
[1746640663089,5.56621999,1796.6,1796.1,12.72424312]
[1746640663245,5.56653798,1796.5,1796.1,6.72424312]
[1746640663442,5.56621877,1796.6,1796.2,5.56712455]
[1746640663751,5.56642257,1796.5,1796.2,5.56712455]
[1746640663950,5.56642257,1796.5,1796.2,7.39626132]
[1746640664352,5.56642257,1796.5,1796.2,7.45192771]
[1746640664548,5.56545942,1796.8,1796.2,1.82913677]
[1746640664862,5.56682744,1796.4,1796.1,7.15677441]
[1746640665241,5.56652724,1796.5,1796.2,0.05566671]
[1746640665446,11.13315558,1796.5,1796.1,12.72424032]
[1746640665661,5.56652724,1796.5,1796.1,12.72424032]
[1746640666079,5.56652724,1796.5,1796.1,18.29168706]
[1746640666281,5.56652724,1796.5,1796.2,1.82916871]
[1746640666582,5.56680004,1796.4,1796.2,1.82916871]
[1746640666763,5.56680004,1796.4,1796.1,6.0]
[1746640667481,5.56680004,1796.4,1796.1,11.56758994]
[1746640667676,5.56652724,1796.5,1796.2,5.56725563]
[1746640667880,5.56652724,1796.5,1796.2,0.0556667]
[1746640668125,5.56680419,1796.4,1796.1,11.56758994]
[1746640668272,0.8089,1797.0,1796.1,6.0]
[1746640668469,3.92008728,1797.3,1795.9,11.0175]
[1746640668470,0.8089,1796.9,1796.0,6.0]
[1746640668671,5.56638713,1796.5,1796.1,0.0556701]
[1746640668847,11.13256138,1796.6,1796.2,5.56710752]
[1746640669048,5.5666072,1796.5,1796.1,11.5674533]
[1746640669260,5.56683605,1796.4,1796.2,1.15674533]
[1746640669479,5.56675098,1796.4,1796.2,1.15674533]
[1746640669799,5.56651735,1796.5,1796.2,1.15674533]
[1746640670105,5.56686706,1796.4,1796.2,1.15674533]
[1746640670312,5.56730876,1796.2,1796.1,6.0]
[1746640670470,5.56713587,1796.3,1796.1,6.0]
[1746640671003,5.56730876,1796.2,1796.1,6.0]
[1746640672303,5.567738,1796.1,1795.9,0.8275]
[1746640672504,11.13486797,1796.2,1795.9,1.55148263]
[1746640672673,5.56763564,1796.1,1795.9,1.55148263]
[1746640673170,5.56763564,1796.1,1795.9,0.8275]
[1746640673376,5.56763564,1796.1,1795.8,6.4123263]
[1746640673377,5.56802978,1796.0,1795.8,6.4123263]
[1746640673713,5.56763564,1796.1,1795.8,6.4123263]
[1746640673920,11.13497186,1796.2,1795.9,0.05567667]
[1746640674069,5.5673999,1796.2,1795.9,0.05567667]
[1746640674269,11.13500875,1796.2,1795.9,0.05567667]
[1746640674507,6.37540825,1796.5,1795.9,0.05567667]
[1746640674508,0.8089,1796.5,1795.9,5.62368199]
[1746640674815,0.7631,1796.8,1796.0,0.8125]
[1746640675023,5.56640812,1796.5,1796.1,5.62316451]
[1746640675370,5.56615302,1796.6,1796.2,5.56719632]
[1746640675571,5.56652259,1796.5,1796.0,4.73258728]
[1746640675777,5.56613028,1796.6,1796.2,5.56729987]
[1746640675995,5.56613028,1796.6,1796.2,6.6807795]
[1746640676198,5.56581888,1796.7,1796.2,6.6806398]
[1746640676394,5.56624353,1796.6,1796.2,6.6806398]
[1746640676594,5.56591126,1796.7,1796.2,12.24781178]
[1746640676905,11.13193625,1796.7,1796.3,0.05566268]
[1746640677108,5.56579279,1796.7,1796.4,0.83]
[1746640678914,5.56622933,1796.6,1796.4,0.83]
[1746640679071,5.56622933,1796.6,1796.2,1.11347963]
[1746640679072,5.56637907,1796.5,1796.2,1.89227963]
[1746640679277,5.56637907,1796.5,1796.2,0.7788]
[1746640679472,5.56621463,1796.6,1796.2,6.34609053]
[1746640679694,5.56621463,1796.6,1796.2,12.34609053]
[1746640679907,5.56640539,1796.5,1796.2,6.7788]
[1746640680207,5.5667426,1796.4,1796.2,6.7788]
[1746640680411,5.56688142,1796.4,1796.2,6.0]
[1746640680775,5.56688142,1796.4,1795.9,6.7922]
[1746640681092,5.56774083,1796.1,1796.0,6.0]
[1746640681473,5.56761872,1796.1,1796.0,6.0]
[1746640682199,5.56854883,1795.8,1795.7,6.0]
[1746640682376,5.5693134,1795.6,1795.4,0.7749]
[1746640682576,5.5693134,1795.6,1795.4,1.45239]
[1746640682778,5.56899714,1795.7,1795.4,7.45239]
[1746640683277,5.56912728,1795.7,1795.4,7.45239]
[1746640683608,11.13825522,1795.7,1795.4,7.45239]
[1746640683809,5.56888561,1795.7,1795.4,7.45239]
[1746640684009,5.56888561,1795.7,1795.5,0.745239]
[1746640684173,3.7683,1796.2,1795.5,6.314711]
[1746640684380,5.56837785,1795.9,1795.5,12.37039842]
[1746640684581,5.5685927,1795.8,1795.5,6.745239]
[1746640684778,5.5685927,1795.8,1795.6,6.0]
[1746640685581,5.5685927,1795.8,1795.4,1.45239]
[1746640685582,5.5700448,1795.4,1795.2,6.7987]
[1746640685782,5.5700997,1795.3,1794.9,6.7761]
[1746640686029,5.5700997,1795.3,1795.0,0.67761]
[1746640686332,11.14010227,1795.4,1795.0,6.24854112]
[1746640686482,5.5700448,1795.4,1795.0,6.24854112]
[1746640686685,5.56947925,1795.5,1795.0,6.0]
[1746640686983,5.57023239,1795.3,1795.0,6.4229826]
[1746640687186,5.56971521,1795.5,1795.0,6.4229826]
[1746640687395,0.7834,1795.7,1795.1,6.69799869]
[1746640687595,5.56848594,1795.9,1795.4,5.56971674]
[1746640687798,5.56802724,1796.0,1795.6,5.5690205]
[1746640687987,5.56834273,1795.9,1795.5,12.33581166]
[1746640688205,5.56907012,1795.7,1795.5,6.7665]
[1746640688390,5.56792873,1796.0,1795.5,7.44315]
[1746640688592,5.56895257,1795.7,1795.5,6.67665]
[1746640688920,11.13754484,1795.8,1795.5,6.67665]
[1746640689115,5.56869733,1795.8,1795.5,6.67665]
[1746640690111,5.56916907,1795.6,1795.5,6.0]
[1746640690523,5.56891679,1795.7,1795.5,6.0]
[1746640690824,3.6625657,1796.4,1795.6,6.0]
[1746640690987,5.56715059,1796.3,1795.9,5.56817668]
[1746640691193,9.22942674,1796.4,1795.9,5.56817668]
[1746640691389,5.56748027,1796.2,1795.9,6.0]
[1746640691585,3.6625657,1796.4,1796.0,5.56763601]
[1746640691836,3.6625657,1796.4,1796.1,11.62304983]
[1746640692025,3.6625657,1796.4,1796.2,0.05566747]
[1746640692391,5.56653153,1796.5,1796.2,0.05566747]
[1746640692591,6.6625657,1796.9,1796.2,11.62287482]
[1746640692592,5.56618403,1796.6,1796.2,11.62287482]
[1746640692820,5.56618403,1796.6,1796.2,13.28624326]
[1746640693024,5.56618403,1796.6,1796.2,13.28613268]
[1746640693331,5.56694268,1796.4,1796.2,8.13025018]
[1746640693533,5.56699883,1796.3,1796.2,6.0]
[1746640694455,5.56694268,1796.4,1796.2,6.0]
[1746640694733,5.56654175,1796.5,1796.2,6.0]
[1746640694932,5.56669234,1796.4,1796.2,6.0]
[1746640695090,5.56699883,1796.3,1796.2,6.0]
[1746640695490,5.56735367,1796.2,1795.9,6.0]
[1746640695716,5.56700124,1796.3,1796.0,0.6]
[1746640695717,5.56726952,1796.3,1796.0,0.6]
[1746640695904,5.56726952,1796.3,1796.0,6.16791786]
[1746640696120,5.56726952,1796.3,1796.0,0.6]
[1746640696296,5.56683239,1796.4,1796.0,6.16771198]
[1746640696726,5.56640432,1796.5,1796.1,5.56752273]
[1746640697029,5.56624747,1796.6,1796.1,1.22919349]
[1746640697209,5.56653716,1796.5,1796.1,5.62307833]
[1746640697532,5.56669289,1796.4,1796.0,6.59069042]
[1746640697734,5.56654724,1796.5,1796.1,5.56752023]
[1746640698028,5.56626285,1796.6,1796.1,5.62318932]
[1746640698219,5.56653726,1796.5,1796.1,5.62318932]
[1746640698424,5.56653726,1796.5,1796.2,0.56231893]
[1746640698833,5.56653726,1796.5,1796.2,6.12960555]
[1746640699133,5.56653726,1796.5,1796.2,0.56231893]
[1746640699336,5.56653726,1796.5,1796.1,5.56740655]
[1746640699907,5.56670608,1796.4,1796.1,5.56740655]
[1746640700228,5.56625247,1796.6,1796.2,5.56715008]
[1746640700397,5.5666913,1796.4,1796.1,5.56740655]
[1746640700599,5.5666913,1796.4,1796.2,6.0]
[1746640700817,5.56653348,1796.5,1796.2,7.16230741]
[1746640701929,5.56619699,1796.6,1796.2,12.72941111]
[1746640702315,5.56647762,1796.5,1796.2,12.72941111]
[1746640702935,5.56619699,1796.6,1796.2,18.29650626]
[1746640703108,5.56642893,1796.5,1796.2,7.16230741]
[1746640703499,5.56642893,1796.5,1796.3,6.0]
[1746640703722,5.56619699,1796.6,1796.3,6.0]
[1746640703723,11.13255289,1796.6,1796.3,6.0]
[1746640703928,5.56651593,1796.5,1796.3,6.0]
[1746640704802,5.56619699,1796.6,1796.3,12.28318103]
[1746640705138,5.56593276,1796.7,1796.3,12.28318103]
[1746640705437,5.56616739,1796.6,1796.3,12.28318103]
[1746640705659,5.56544968,1796.8,1796.3,6.71623074]
[1746640705841,5.56636057,1796.6,1796.4,6.0]
[1746640706132,5.56637907,1796.5,1796.4,6.67718945]
[1746640706308,5.56636057,1796.6,1796.4,6.67718945]
[1746640706514,5.56594658,1796.7,1796.4,6.67718945]
[1746640706756,5.56557577,1796.8,1796.5,6.05566379]
[1746640706936,5.56418011,1797.3,1796.6,0.60556638]
[1746640706937,5.56529776,1796.9,1796.6,0.60556638]
[1746640707140,5.56497802,1797.0,1796.7,6.0]
[1746640707312,5.5646795,1797.1,1796.7,11.6211194]
[1746640707645,5.56473462,1797.1,1796.7,11.56560671]
[1746640707831,5.56473462,1797.1,1796.8,6.05564766]
[1746640708044,5.56297285,1797.6,1796.9,5.56511723]
[1746640708227,5.5635391,1797.5,1797.1,5.56440115]
[1746640708415,5.56351442,1797.5,1797.1,5.62003797]
[1746640708610,5.56314174,1797.6,1797.1,0.05563682]
[1746640708816,5.56314174,1797.6,1797.2,11.56409372]
[1746640709029,3.6625657,1797.7,1797.3,5.61943834]
[1746640709239,5.56316787,1797.6,1797.4,6.0]
[1746640709548,5.56328233,1797.5,1797.4,6.0]
[1746640709920,3.6625657,1797.7,1797.4,6.0]
[1746640710121,9.22537516,1797.7,1797.4,6.0]
[1746640710335,3.6625657,1797.7,1797.5,6.0556267]
[1746640710520,3.6625657,1797.7,1797.5,6.0]
[1746640711347,3.6625657,1797.7,1797.5,11.56326323]
[1746640711543,3.6625657,1797.7,1797.5,6.0]
[1746640712353,5.56220597,1797.9,1797.5,11.56325683]
[1746640712527,5.56244417,1797.8,1797.5,7.27197408]
[1746640713248,5.56297285,1797.6,1797.5,7.27197408]
[1746640713451,5.56297285,1797.6,1797.5,6.0]
[1746640715129,5.56297285,1797.6,1797.4,6.0]
[1746640715130,5.56328233,1797.5,1797.4,6.0]
[1746640716155,5.56328233,1797.5,1797.1,5.56450881]
[1746640716156,5.56421099,1797.2,1797.1,6.0]
[1746640716339,5.56368467,1797.4,1797.0,11.62043526]
[1746640716526,5.56377521,1797.4,1797.1,1.16204353]
[1746640716927,5.56273075,1797.7,1797.1,1.16204353]
[1746640716928,5.56394828,1797.3,1797.1,1.16204353]
[1746640717131,5.56421099,1797.2,1797.0,6.4177454]
[1746640717552,5.56407399,1797.3,1797.0,6.4177454]
[1746640718052,5.56376932,1797.4,1797.0,12.03812052]
[1746640718251,5.56391138,1797.3,1797.0,11.98240607]
[1746640718451,5.56376932,1797.4,1797.1,1.19824061]
[1746640718659,5.56312001,1797.6,1797.2,5.61967067]
[1746640718841,5.56329951,1797.5,1797.3,6.0]
[1746640719045,11.12685286,1797.5,1797.3,6.0]
[1746640719354,5.56329951,1797.5,1797.3,6.0]
[1746640719557,5.56311017,1797.6,1797.3,7.1619789]
[1746640719759,5.5632872,1797.5,1797.3,7.1619789]
[1746640720062,11.1268266,1797.5,1797.3,7.1619789]
[1746640720223,5.5632872,1797.5,1797.3,6.0]
[1746640720425,5.56317568,1797.6,1797.3,6.0]
[1746640720925,5.56339712,1797.5,1797.3,6.0]
[1746640721125,5.56317568,1797.6,1797.3,6.0]
[1746640721337,5.56317568,1797.6,1797.3,12.72584447]
[1746640721722,5.56317568,1797.6,1797.3,7.16195964]
[1746640721922,5.56317568,1797.6,1797.3,7.21759125]
[1746640722119,5.56281162,1797.7,1797.3,12.72566723]
[1746640722362,5.56247557,1797.8,1797.4,9.1800544]
[1746640722563,5.56247557,1797.8,1797.5,0.91800544]
[1746640722724,5.56247557,1797.8,1797.5,0.97363209]
[1746640723622,5.56222994,1797.9,1797.6,6.0]
[1746640723963,5.56222994,1797.9,1797.7,6.0]
[1746640724536,5.56235398,1797.8,1797.7,6.0]
[1746640724949,5.56222994,1797.9,1797.7,6.0]
[1746640725144,5.56235398,1797.8,1797.7,6.0]
[1746640725465,5.56222994,1797.9,1797.7,6.0]
[1746640726133,5.56235398,1797.8,1797.7,6.0]
[1746640726448,5.56222994,1797.9,1797.7,6.0]
[1746640726762,5.56235398,1797.8,1797.7,6.0]
[1746640727563,5.56222994,1797.9,1797.7,6.0]
[1746640727865,5.56235398,1797.8,1797.7,6.0]
[1746640730269,5.56235398,1797.8,1797.4,6.0]
[1746640730270,5.56328233,1797.5,1797.4,6.0]
[1746640730475,5.56359185,1797.4,1796.7,6.0]
[1746640730683,5.56497164,1797.0,1796.8,6.0]
[1746640730871,5.56472742,1797.1,1796.9,6.0]
[1746640731076,5.56463562,1797.1,1796.9,6.0]
[1746640731373,5.56469725,1797.1,1796.9,6.0]
[1746640732138,5.56483027,1797.0,1796.9,6.0]
[1746640732540,5.56469725,1797.1,1796.9,6.0]
[1746640732739,5.56456276,1797.1,1796.9,6.6]
[1746640732941,5.56297285,1797.6,1796.9,12.16502395]
[1746640733151,5.56297285,1797.6,1797.0,6.0]
[1746640733152,5.5640213,1797.3,1797.0,6.0]
[1746640733644,8.5627442,1797.7,1797.0,6.0]
[1746640733839,8.5627442,1797.7,1797.0,7.21649057]
[1746640733840,5.56345052,1797.5,1797.0,7.21649057]
[1746640734072,5.56369787,1797.4,1797.0,12.78111125]
[1746640734455,5.55808782,1797.4,1797.0,12.78111125]
[1746640734660,5.56377913,1797.4,1797.0,12.78111125]
[1746640734870,5.56377913,1797.4,1797.0,7.21649057]
[1746640735048,5.56399869,1797.3,1797.1,0.72164906]
[1746640735548,5.56378717,1797.4,1797.1,0.72164906]
[1746640736480,5.56405413,1797.3,1797.1,0.72164906]
[1746640736678,5.56419351,1797.3,1797.0,1.21649057]
[1746640736881,5.56419351,1797.3,1796.9,5.56503344]
[1746640737297,5.56419351,1797.3,1796.9,11.12999155]
[1746640737464,5.56419351,1797.3,1796.9,5.56495811]
[1746640738301,5.56413778,1797.3,1796.9,5.56495811]
[1746640738703,5.56413778,1797.3,1796.9,5.56491667]
[1746640739011,5.56372443,1797.4,1797.0,6.12112538]
[1746640739212,5.56328233,1797.5,1797.0,0.55649167]
[1746640739411,5.56417653,1797.3,1797.0,0.55649167]
[1746640739965,5.56452061,1797.1,1797.0,0.55649167]
[1746640740167,5.56452061,1797.1,1796.8,5.98422133]
[1746640740391,5.56452061,1797.1,1796.8,0.4188703]
[1746640740601,5.56452061,1797.1,1796.7,9.16554357]
[1746640740808,5.56452061,1797.1,1796.7,9.16553461]
[1746640741201,5.56452061,1797.1,1796.7,14.73106475]
[1746640741381,5.56452061,1797.1,1796.8,7.03853822]
[1746640744018,5.56452061,1797.1,1796.8,1.47310648]
[1746640744667,5.56452061,1797.1,1796.8,1.88523431]
[1746640745508,5.56452061,1797.1,1796.9,6.0]
[1746640746106,5.56483027,1797.0,1796.9,6.0]
[1746640746278,5.56483027,1797.0,1796.9,6.64121278]
[1746640747708,5.56452061,1797.1,1796.9,6.64121278]
[1746640748377,5.56483027,1797.0,1796.9,6.64121278]
[1746640748608,5.56452061,1797.1,1796.9,6.64121278]
[1746640749911,5.56483027,1797.0,1796.9,6.64121278]
[1746640750215,5.56483027,1797.0,1796.9,6.0]
[1746640755005,5.56437598,1797.2,1796.9,6.0]
[1746640755206,5.56475473,1797.1,1796.9,6.0]
[1746640755409,5.56483027,1797.0,1796.9,6.0]
[1746640755910,5.56475473,1797.1,1796.9,6.64121278]
[1746640756110,11.12950565,1797.1,1796.9,6.64121278]
[1746640756722,5.56483027,1797.0,1796.9,6.0]
[1746640756916,5.56475092,1797.1,1796.9,6.0]
[1746640757117,5.5643723,1797.2,1796.9,11.56510352]
[1746640757319,10.19,1798.6,1796.8,0.41212783]
[1746640757632,5.56247023,1797.8,1796.9,3.0]
[1746640757926,5.56369835,1797.4,1797.0,5.86459127]
[1746640758126,5.56355261,1797.5,1797.1,5.56447592]
[1746640758329,5.56355261,1797.5,1797.0,5.86459127]
[1746640758489,5.56368559,1797.4,1797.0,5.86459127]
[1746640758689,5.56368559,1797.4,1797.1,0.58645913]
[1746640759292,5.56226254,1797.9,1797.5,5.56315523]
[1746640759491,5.56340242,1797.5,1797.1,22.76448608]
[1746640759812,5.56340242,1797.5,1797.1,6.57459807]
[1746640760111,5.56340242,1797.5,1797.2,0.65745981]
[1746640760443,5.56309611,1797.6,1797.2,0.65745981]
[1746640760734,5.56337473,1797.5,1797.2,5.6198324]
[1746640760904,5.56340884,1797.5,1797.1,6.57449249]
[1746640761089,5.56208247,1797.9,1797.1,1.01018039]
[1746640761294,5.56378288,1797.4,1797.1,1.01018039]
[1746640761594,5.56341931,1797.5,1797.1,22.76449971]
[1746640761796,5.56341931,1797.5,1797.2,2.27644997]
[1746640762006,5.56341931,1797.5,1797.1,12.13884505]
[1746640762340,5.5631465,1797.6,1797.2,5.6196009]
[1746640762508,5.5631465,1797.6,1797.2,5.56396715]
[1746640762707,5.56329109,1797.5,1797.2,5.56396715]
[1746640763270,5.56311426,1797.6,1797.2,5.61960091]
[1746640763441,5.56249681,1797.8,1797.3,0.56196009]
[1746640763603,5.56249681,1797.8,1797.4,5.56343574]
[1746640763812,5.56249681,1797.8,1797.5,0.05562729]
[1746640764435,5.56249681,1797.8,1797.4,5.61903067]
[1746640764742,5.56248692,1797.8,1797.5,0.055627]
[1746640764910,11.12507678,1797.8,1797.5,0.61752614]
[1746640765111,5.56248692,1797.8,1797.5,0.56189914]
[1746640765311,5.5626754,1797.7,1797.5,0.56189914]
[1746640766549,5.56285384,1797.7,1797.6,6.0]
[1746640766848,5.56285384,1797.7,1797.4,6.0]
[1746640767834,5.5630384,1797.6,1797.4,6.0]
[1746640768215,5.56328233,1797.5,1797.4,6.0]
[1746640769946,5.56421099,1797.2,1797.1,3.73831111]
[1746640770246,5.56378512,1797.4,1797.1,10.11214222]
[1746640770423,5.5639698,1797.3,1797.1,10.11214222]
[1746640770628,5.5639698,1797.3,1797.2,6.0]
[1746640770846,11.12760076,1797.4,1797.2,6.0]
[1746640771248,5.5639014,1797.3,1797.2,7.05217266]
[1746640771454,5.5639014,1797.3,1797.2,6.0]
[1746640772037,5.56372206,1797.4,1797.2,6.0]
[1746640772549,5.5639014,1797.3,1797.2,5.9136]
[1746640774048,5.56421099,1797.2,1797.1,5.9136]
[1746640774822,5.5639014,1797.3,1797.1,5.9136]
[1746640775028,5.56421099,1797.2,1797.1,5.9136]
[1746640775524,5.56544968,1796.8,1796.7,5.9136]
[1746640775955,11.13067284,1796.9,1796.7,5.9136]
[1746640776256,11.1306949,1796.9,1796.7,5.9136]
[1746640776474,5.56526887,1796.9,1796.7,5.9136]
[1746640777048,5.56514504,1796.9,1796.7,5.9136]
[1746640778064,5.56488649,1797.0,1796.7,5.9136]
[1746640778365,3.55,1797.6,1796.7,6.50496]
[1746640778578,3.55,1797.6,1796.7,0.59136]
[1746640778731,3.55,1797.6,1796.6,0.05565586]
[1746640778926,3.55,1797.6,1796.6,0.48153021]
[1746640779155,3.55,1797.6,1796.6,0.05565586]
[1746640781563,0.55,1797.8,1796.6,0.05565586]
[1746640781949,0.55,1797.8,1796.5,0.05564653]
[1746640782151,0.55,1797.8,1796.6,0.05564648]
[1746640782338,0.55,1797.8,1796.6,0.48348397]
[1746640782876,3.0,1797.9,1796.6,0.48348397]
[1746640783186,3.0,1797.9,1796.3,3.73831111]
[1746640783187,3.0,1797.2,1796.3,3.73831111]
[1746640783473,0.55,1797.1,1796.3,3.73831111]
[1746640783689,5.56355457,1797.5,1796.3,4.11214222]
[1746640783887,0.55,1797.6,1796.4,0.05566606]
[1746640784040,3.0,1797.5,1796.4,3.05566606]
[1746640784241,3.0,1797.5,1796.4,3.0]
[1746640784441,0.55,1797.4,1796.4,3.0]
[1746640784674,0.55,1797.4,1796.4,3.75285026]
[1746640785173,0.55,1797.4,1796.5,3.79396815]
[1746640786576,3.0,1797.7,1796.5,3.79396815]
[1746640786781,3.0,1797.7,1796.6,3.0]
[1746640787077,3.55,1797.4,1796.5,3.73831111]
[1746640788053,0.55,1797.4,1796.5,3.73831111]